Workbook

Sheet Inicio FPcp
A23: Descargue la versión Kindle
K31: Miguel Cervantes Jiménez

Sheet Etapas Produccion FPcp (hidden)
A1: FUNCIÓN DE PRODUCCIÓN
A2: CORTO PLAZO
A3: PRODUCTO TOTAL, MEDIO Y MARGINAL
A4: Función de producción polinomial
C6: y | D6: ='Oculto EcuS'!C45 -> 6,028.8
C7: q1 | D7: 480.0
C8: a(q1^3) | D8: -0.00010
C9: b(q1^2) | D9: 0.07000
C10: c(q1) | D10: 2.00000 | K10: 0
C11: d | D11: ='Oculto EcuS'!C50 -> 0.0 | K11: =(D8*(K12^(2))+D9*(K12)+D10+D11/K12)-(3*D8*(K12^(2))+2*D9*K12+D10) -> 0.00
D12: Inserte los datos correspondientes | K12: -0.0007014477057
B13: q1 | D13: ='Oculto EcuS'!C46 -> 480.0
B14: Producto total | D14: ='Oculto EcuS'!C52 -> 6,028.8
B15: Producto medio | D15: ='Oculto EcuS'!C53 -> 12.6
B16: Producto marginal | D16: ='Oculto EcuS'!C54 -> 0.1
B18: Títulos
B19: Resultados
B20: Insertar datos

Sheet Funcion Rend.Const. FPcp (hidden)
A1: FUNCIÓN DE PRODUCCIÓN
A2: CORTO PLAZO
A3: PRODUCTO TOTAL, MEDIO Y MARGINAL
C6: y | D6: ='Oculto EcuS'!AH27 -> 109.5
C7: A | D7: 2.0
C8: q1 | D8: 50.0
C9: a | D9: 0.5
C10: q2 | D10: 60.0
C11: 1-a | D11: =1-D9 -> 0.5
D12: Inserte los datos correspondientes
B14: Cantidad de q1 | D14: ='Oculto EcuS'!AH35 -> 50.0
B15: Producto total | D15: ='Oculto EcuS'!AH36 -> 109.5
B16: Producto medio | D16: ='Oculto EcuS'!AH37 -> 2.19
B17: Producto marginal | D17: ='Oculto EcuS'!AH38 -> 1.10
B20: Títulos
B21: Resultados
B22: Insertar datos

Sheet Funcion Rend.Var. FPcp (hidden)
A1: FUNCIÓN DE PRODUCCIÓN
A2: CORTO PLAZO
A3: PRODUCTO TOTAL, MEDIO Y MARGINAL
A4: Rendimientos variables
C6: y | D6: ='Oculto EcuS'!BV27 -> 25.3
C7: A | D7: 4.0
C8: q1 | D8: 40.0
C9: a | D9: 0.5
C10: q2 | D10: 1.0
C11: b | D11: 0.0
D12: Inserte los datos correspondientes
B14: Cantidad de q1 | D14: ='Oculto EcuS'!BV35 -> 40.0
B15: Producto Total | D15: ='Oculto EcuS'!BV36 -> 25.3
B16: Producto Medio | D16: ='Oculto EcuS'!BV37 -> 0.63
B17: Producto Marginal | D17: ='Oculto EcuS'!BV38 -> 0.32
B20: Títulos
B21: Resultados
B22: Insertar Datos

Sheet Cambio Tecnologico FPcp (hidden)
A1: FUNCIÓN DE PRODUCCIÓN
A2: CORTO PLAZO
A3: CAMBIO TECNOLÓGICO
B5: FUNCIÓN | C5: INICIAL | E5: FINAL
B6: y | C6: ='Oculto EcuS'!AY27 -> 1,000.0 | E6: ='Oculto EcuS'!BK27 -> 1,000.0
B7: A | C7: 20.0 | E7: =C7 -> 20.0
B8: q1 | C8: 50.0 | E8: =C8 -> 50.0
B9: a | C9: 0.5 | E9: =C9 -> 0.5
B10: q2 | C10: 50.0 | E10: =C10 -> 50.0
B11: b | C11: =1-C9 -> 0.5 | E11: ='Oculto EcuS'!BK32 -> 0.5
B12: Inserte los datos INICIALES | E12: Cambie los datos INICIALES
B15: Cantidad de q1 | E15: ='Oculto EcuS'!AY29 -> 50.0
B16: Producto total inicial | E16: ='Oculto EcuS'!BD27 -> 1,000.0
B17: Producto total final | E17: ='Oculto EcuS'!BE27 -> 1,000.0
B18: Variación del producto total | E18: =E17-E16 -> 0.0
B19: Porcentaje de variación | E19: =E18/E16 -> 0.0%
B21: Títulos
B22: Resultados
B23: Insertar datos

Sheet Funcion Polinomio FPcp (hidden)
A1: FUNCIÓN DE PRODUCCIÓN
A2: CORTO PLAZO
A3: PRODUCTO TOTAL, MEDIO Y MARGINAL
C6: y | D6: ='Oculto EcuS'!CL26 -> 3,312.5
C7: q1 | D7: 250.0
C8: a(q1^3) | D8: -0.00010
C9: b(q1^2) | D9: 0.07000
C10: c(q1) | D10: 2.00000
C11: d | D11: 0.0
D12: Inserte los datos correspondientes
B13: Cantidad de q1 | D13: ='Oculto EcuS'!CL33 -> 250.0
B14: Producto total | D14: ='Oculto EcuS'!CL34 -> 3,312.5
B15: Producto medio | D15: ='Oculto EcuS'!CL35 -> 13.3
B16: Producto marginal | D16: ='Oculto EcuS'!CL36 -> 18.3
B19: Títulos
B20: Resultados
B21: Insertar datos

Sheet Oculto EcuS (hidden)
B1: ETAPAS DE LA PRODUCCIÓN | AF1: FUNCIÓN DE PRODUCCIÓN RENDIMIENTOS CONSTANTES | AW1: FUNCIÓN DE PRODUCCIÓN INICIAL | BI1: FUNCIÓN DE PRODUCCIÓN FINAL | BT1: FUNCIÓN DE PRODUCCIÓN RENDIMIENTOS VARIABLES | CJ1: FUNCIÓN DE PRODUCCIÓN RENDIMIENTOS CONSTANTES | CT1: pmg,pme
B2: Ponderador | C2: Producto Total | D2: x1 | G2: Producto Medio | H2: Producto Marginal | I2: maxq1 | J2: q1maxpond | K2: max PT | L2: PT ponde | M2: q1 | N2: q1 | O2: pt | P2: pt | Q2: pmg | R2: pmg | S2: origen | T2: origen | W2: =MIN($W$5:$W$433) -> 217,430 | AF2: Ponderador | AG2: Producto Total | AH2: x1 | AI2: A | AJ2: allfa | AK2: x2 | AL2: uno menos alfa | AM2: Producto Total | AN2: Producto Medio | AO2: Producto Marginal | AP2: max PT | AQ2: PT ponde | AR2: cantidad | AT2: Pme | AU2: PMg | AW2: Ponderador | AX2: Función de Producción Inicial | AY2: x1 | AZ2: A | BA2: allfa | BB2: x2 | BC2: Beta | BD2: max PT | BE2: PT ponde | BF2: y1 Line | BI2: Ponderador | BJ2: Función de Producción Final | BK2: x1 | BL2: A | BM2: allfa | BN2: x2 | BO2: Beta | BP2: y2 Line | BT2: Ponderador | BU2: Producto Total | BV2: x1 | BW2: A | BX2: allfa | BY2: x2 | BZ2: Beta | CA2: Producto Total | CB2: Producto Medio | CC2: Producto Marginal | CD2: max PT | CE2: PT ponde | CF2: cantidad | CJ2: Ponderador | CK2: Producto Total | CL2: q1 | CM2: Producto Total | CN2: Producto Medio | CO2: Producto Marginal | CP2: max PT | CQ2: PT ponde | CR2: cantidad | CT2: line q1 | CU2: pme ó pmg | CV2: q1,1Line | CW2: q1,2Line
A3: 0 | B3: =A3 -> 0 | C3: =$C$47*(D3^(3))+$C$48*(D3^(2))+$C$49*D3+$C$50 -> 0 | D3: =$C$46*1.1*B3 -> 0 | G3: =C3/D3 ->  | H3: =3*$C$47*(D3^(2))+2*$C$48*D3+$C$49 -> 2.00 | I3: =$H$46 -> 480.54 | J3: =$H$46*B3 -> 0 | K3: =$H$45 -> 6,028.82 | L3: =$H$45*$B3 -> 0 | M3: =$H$50*B3 -> 0 | N3: =$H$50 -> (0.00) | O3: =$H$51*B3 -> 0 | P3: =$H$51 -> (0.00) | Q3: =$H$53*B3 -> 0 | R3: =$H$53 -> 2.00 | S3: 0 | T3: =$K$46 -> 233.3333333 | U3: =$K$47*B3 -> 0 | V3: =$K$45*B3 -> 0 | AF3: 0 | AG3: =AI3*(AH3^(AJ3)*AK3^(AL3)) -> 0 | AH3: =$AH$26*1.2*AF3 -> 0 | AI3: =AH28 -> 2.00 | AJ3: =AH30 -> 0.50 | AK3: =AH31 -> 60.00 | AL3: =AH32 -> 0.50 | AM3: =AG3 -> 0 | AN3: 0 | AO3: 0 | AP3: =AH35 -> 50.00 | AQ3: =$AH$36*$AF3 -> 0 | AR3: =$AP$3*AF3 -> 0 | AS3: =$AH$36 -> 109.54 | AT3: =$AH$37 -> 2.19 | AU3: =$AH$38 -> 1.10 | AW3: 0 | AX3: =AZ3*(AY3^(BA3)*BB3^(BC3)) -> 0 | AY3: =AY$29*1.2*AW3 -> 0 | AZ3: =AY28 -> 20.00 | BA3: =AY30 -> 0.50 | BB3: =AY31 -> 50.00 | BC3: =AY32 -> 0.50 | BD3: =AY35 -> 50.00 | BE3: =(MAX($BD$26,$BE$26))*$AW3 -> 0 | BF3: =$AY$29*AW3 -> 0 | BG3: =$AY$27 -> 1,000.00 | BI3: 0 | BJ3: =BL3*(BK3^(BM3)*BN3^(BO3)) -> 0 | BK3: =BK$29*1.2*BI3 -> 0 | BL3: =BK28 -> 20.00 | BM3: =BK30 -> 0.50 | BN3: =BK31 -> 50.00 | BO3: =BK32 -> 0.50 | BP3: =$BK$29*BI3 -> 0 | BQ3: =$BK$27 -> 1,000.00 | BT3: 0 | BU3: =BW3*(BV3^(BX3)*BY3^(BZ3)) -> 0 | BV3: =$BV$26*1.2*BT3 -> 0 | BW3: =BV28 -> 4.00 | BX3: =BV30 -> 0.50 | BY3: =BV31 -> 1.00 | BZ3: =BV32 -> 0 | CA3: =BU3 -> 0 | CB3: 0 | CC3: 0 | CD3: =BV35 -> 40.00 | CE3: =$BV$36*$BT3 -> 0 | CF3: =$CD$3*BT3 -> 0 | CG3: =$BV$36 -> 25.30 | CJ3: 0 | CK3: =($CL$28*(CL3^(3)))+($CL$29*(CL3^(2)))+($CL$30*CL3) -> 0 | CL3: =($CL$27*1.1)*CJ3 -> 0 | CM3: =CK3 -> 0 | CN3: 0 | CO3: 0 | CP3: =CL27 -> 250.00 | CQ3: =$CL$26*CJ3 -> 0 | CR3: =$CL$27*CJ3 -> 0 | CS3: =$CL$26 -> 3,312.50 | CT3: =CR3 -> 0 | CU3: =(MAX($CL$35:$CL$36))*CJ3 -> 0 | CV3: =$CL$35 -> 13.25 | CW3: =$CL$36 -> 18.25
A4: =A3+(1/40) -> 0.025 | B4: =A4 -> 0.03 | C4: 38.37 | D4: 13.20 | G4: =C4/D4 -> 2.91 | H4: =3*$C$47*(D4^(2))+2*$C$48*D4+$C$49 -> 3.80 | I4: =$H$46 -> 480.54 | J4: =$H$46*B4 -> 12.01 | K4: =$H$45 -> 6,028.82 | L4: =$H$45*$B4 -> 150.72 | M4: =$H$50*B4 -> (0.00) | N4: =$H$50 -> (0.00) | O4: =$H$51*B4 -> (0.00) | P4: =$H$51 -> (0.00) | Q4: =$H$53*B4 -> 0.05 | R4: =$H$53 -> 2.00 | S4: 0 | T4: =$K$46 -> 233.3333333 | U4: =$K$47*B4 -> 0.4583333333 | V4: =$K$45*B4 -> 75.18518519 | W4: =IF(I4=0,1000000000000000,(I4-G4)^(2)) -> 228,134 | AA4: =W2-W5 -> (9,872) | AF4: 0.05 | AG4: =AI4*(AH4^(AJ4)*AK4^(AL4)) -> 28.14 | AH4: 3.30 | AI4: =AI3 -> 2.00 | AJ4: =AJ3 -> 0.50 | AK4: =AK3 -> 60.00 | AL4: =AL3 -> 0.50 | AM4: =AG4 -> 28.14 | AN4: =AG4/AH4 -> 8.53 | AO4: =$AH$30*$AH$28*(($AH$31/AH4)^($AH$32)) -> 4.26 | AP4: =AP3 -> 50.00 | AQ4: =$AH$36*$AF4 -> 5.48 | AR4: =$AP$3*AF4 -> 2.50 | AS4: =$AH$36 -> 109.54 | AT4: =$AH$37 -> 2.19 | AU4: =$AH$38 -> 1.10 | AW4: 0.05 | AX4: =AZ4*(AY4^(BA4)*BB4^(BC4)) -> 244.95 | AY4: =$AY$29*1.2*AW4 -> 3.00 | AZ4: =AZ3 -> 20.00 | BA4: =BA3 -> 0.50 | BB4: =BB3 -> 50.00 | BC4: =BC3 -> 0.50 | BD4: =BD3 -> 50.00 | BE4: 50.00 | BF4: =$AY$29*AW4 -> 2.50 | BG4: =$AY$27 -> 1,000.00 | BI4: 0.05 | BJ4: =BL4*(BK4^(BM4)*BN4^(BO4)) -> 244.95 | BK4: =$AY$29*1.2*BI4 -> 3.00 | BL4: =BL3 -> 20.00 | BM4: =BM3 -> 0.50 | BN4: =BN3 -> 50.00 | BO4: =BO3 -> 0.50 | BP4: =$BK$29*BI4 -> 2.50 | BQ4: =$BK$27 -> 1,000.00 | BT4: 0.05 | BU4: =BW4*(BV4^(BX4)*BY4^(BZ4)) -> 6.50 | BV4: =$BV$26*1.2*BT4 -> 2.64 | BW4: =BW3 -> 4.00 | BX4: =BX3 -> 0.50 | BY4: =BY3 -> 1.00 | BZ4: =BZ3 -> 0 | CA4: =BU4 -> 6.50 | CB4: =BU4/BV4 -> 2.46 | CC4: =$BV$30*CA4/BV4 -> 1.23 | CD4: =CD3 -> 40.00 | CE4: =$BV$36*$BT4 -> 1.26 | CF4: =$CD$3*BT4 -> 2.00 | CG4: =$BV$36 -> 25.30 | CJ4: 0.05 | CK4: =($CL$28*(CL4^(3)))+($CL$29*(CL4^(2)))+($CL$30*CL4) -> 40.47 | CL4: =($CL$27*1.1)*CJ4 -> 13.75 | CM4: =CK4 -> 40.47 | CN4: =(($CL$28)*((CL4^2)))+($CL$29*CL4)+($CL$30) -> 2.94 | CO4: =(($CL$28*3)*((CL4^2))+($CL$29*2)*((CL4))+($CL$30)) -> 3.87 | CP4: =CP3 -> 250.00 | CQ4: =$CL$26*CJ4 -> 165.63 | CR4: 12.50 | CS4: =CS3 -> 3,312.50 | CT4: =CR4 -> 12.50 | CU4: =(MAX($CL$35:$CL$36))*CJ4 -> 0.91 | CV4: =$CL$35 -> 13.25 | CW4: =$CL$36 -> 18.25
A5: =A4+(1/40) -> 0.05 | B5: 0.05 | C5: 99.75 | D5: 26.40 | G5: 3.78 | H5: 5.49 | I5: 480.54 | J5: 24.03 | K5: 6,028.82 | L5: 301.44 | M5: (0.00) | N5: (0.00) | O5: (0.00) | P5: (0.00) | Q5: 0.10 | R5: 2.00 | S5: 0 | T5: 233.3333333 | U5: 0.9166666667 | V5: 150.3703704 | W5: =IF(I5=0,1000000000000000,(I5-G5)^(2)) -> 227,302 | X5: =IF($W$2=W5,1,0) -> 0 | Y5: =(IF(X5=1,D5,0)) -> 0 | Z5: =IF(Y5>0,C5,0) -> 0 | AA5: =W5-W6 -> 797 | AC5: y | AD5: ='Etapas Produccion FPcp'!D6 -> 6028.8 | AF5: 0.10 | AG5: 39.80 | AH5: 6.60 | AI5: =AI4 -> 2.00 | AJ5: =AJ4 -> 0.50 | AK5: =AK4 -> 60.00 | AL5: =AL4 -> 0.50 | AM5: 39.80 | AN5: 6.03 | AO5: =$AH$30*$AH$28*(($AH$31/AH5)^($AH$32)) -> 3.02 | AP5: =AP4 -> 50.00 | AQ5: 10.95 | AR5: 5.00 | AS5: 109.54 | AT5: 2.19 | AU5: 1.10 | AW5: 0.10 | AX5: 346.41 | AY5: 6.00 | AZ5: =AZ4 -> 20.00 | BA5: =BA4 -> 0.50 | BB5: =BB4 -> 50.00 | BC5: =BC4 -> 0.50 | BD5: =BD4 -> 50.00 | BE5: 100.00 | BF5: 5.00 | BG5: 1,000.00 | BI5: 0.10 | BJ5: 346.41 | BK5: 6.00 | BL5: =BL4 -> 20.00 | BM5: =BM4 -> 0.50 | BN5: =BN4 -> 50.00 | BO5: =BO4 -> 0.50 | BP5: 5.00 | BQ5: 1,000.00 | BT5: 0.10 | BU5: 9.19 | BV5: 5.28 | BW5: =BW4 -> 4.00 | BX5: =BX4 -> 0.50 | BY5: =BY4 -> 1.00 | BZ5: =BZ4 -> 0 | CA5: 9.19 | CB5: 1.74 | CC5: =$BV$30*CA5/BV5 -> 0.87 | CD5: =CD4 -> 40.00 | CE5: 2.53 | CF5: 4.00 | CG5: 25.30 | CJ5: 0.10 | CK5: 105.86 | CL5: 27.50 | CM5: 105.86 | CN5: =(($CL$28)*((CL5^2)))+($CL$29*CL5)+($CL$30) -> 3.85 | CO5: =(($CL$28*3)*((CL5^2))+($CL$29*2)*((CL5))+($CL$30)) -> 5.62 | CP5: =CP4 -> 250.00 | CQ5: 331.25 | CR5: 25.00 | CS5: =CS4 -> 3,312.50 | CT5: 25.00 | CU5: 1.83 | CV5: 13.25 | CW5: 18.25
A6: 0.075 | B6: 0.08 | C6: 182.76 | D6: 39.60 | G6: 4.62 | H6: 7.07 | I6: 480.54 | J6: 36.04 | K6: 6,028.82 | L6: 452.16 | M6: (0.00) | N6: (0.00) | O6: (0.00) | P6: (0.00) | Q6: 0.15 | R6: 2.00 | S6: 0 | T6: 233.3333333 | U6: 1.375 | V6: 225.5555556 | W6: 226,504 | X6: 0 | Y6: =(IF(X6=1,D6,0)) -> 0 | Z6: =IF(Y6>0,C6,0) -> 0 | AA6: 763 | AC6: A | AD6: ='Etapas Produccion FPcp'!D7 -> 480 | AF6: 0.15 | AG6: 48.74 | AH6: 9.90 | AI6: =AI5 -> 2.00 | AJ6: 0.50 | AK6: 60.00 | AL6: 0.50 | AM6: 48.74 | AN6: 4.92 | AO6: 2.46 | AP6: 50.00 | AQ6: 16.43 | AR6: 7.50 | AS6: 109.54 | AT6: 2.19 | AU6: 1.10 | AW6: 0.15 | AX6: 424.26 | AY6: 9.00 | AZ6: =AZ5 -> 20.00 | BA6: 0.50 | BB6: 50.00 | BC6: 0.50 | BD6: 50.00 | BE6: 150.00 | BF6: 7.50 | BG6: 1,000.00 | BI6: 0.15 | BJ6: 424.26 | BK6: 9.00 | BL6: =BL5 -> 20.00 | BM6: 0.50 | BN6: 50.00 | BO6: 0.50 | BP6: 7.50 | BQ6: 1,000.00 | BT6: 0.15 | BU6: 11.26 | BV6: 7.92 | BW6: =BW5 -> 4.00 | BX6: 0.50 | BY6: 1.00 | BZ6: 0 | CA6: 11.26 | CB6: 1.42 | CC6: 0.71 | CD6: 40.00 | CE6: 3.79 | CF6: 6.00 | CG6: 25.30 | CJ6: 0.15 | CK6: 194.59 | CL6: 41.25 | CM6: 194.59 | CN6: 4.72 | CO6: 7.26 | CP6: 250.00 | CQ6: 496.88 | CR6: 37.50 | CS6: 3,312.50 | CT6: 37.50 | CU6: 2.74 | CV6: 13.25 | CW6: 18.25
A7: 0.1 | B7: 0.10 | C7: 286.03 | D7: 52.80 | G7: 5.42 | H7: 8.56 | I7: 480.54 | J7: 48.05 | K7: 6,028.82 | L7: 602.88 | M7: (0.00) | N7: (0.00) | O7: (0.00) | P7: (0.00) | Q7: 0.20 | R7: 2.00 | S7: 0 | T7: 233.3333333 | U7: 1.833333333 | V7: 300.7407407 | W7: 225,742 | X7: 0 | Y7: =(IF(X7=1,D7,0)) -> 0 | Z7: =IF(Y7>0,C7,0) -> 0 | AA7: 728 | AC7: x1 | AD7: ='Etapas Produccion FPcp'!D8 -> -0.0001 | AF7: 0.20 | AG7: 56.28 | AH7: 13.20 | AI7: =AI4 -> 2.00 | AJ7: 0.50 | AK7: 60.00 | AL7: 0.50 | AM7: 56.28 | AN7: 4.26 | AO7: 2.13 | AP7: 50.00 | AQ7: 21.91 | AR7: 10.00 | AS7: 109.54 | AT7: 2.19 | AU7: 1.10 | AW7: 0.20 | AX7: 489.90 | AY7: 12.00 | AZ7: =AZ4 -> 20.00 | BA7: 0.50 | BB7: 50.00 | BC7: 0.50 | BD7: 50.00 | BE7: 200.00 | BF7: 10.00 | BG7: 1,000.00 | BI7: 0.20 | BJ7: 489.90 | BK7: 12.00 | BL7: =BL4 -> 20.00 | BM7: 0.50 | BN7: 50.00 | BO7: 0.50 | BP7: 10.00 | BQ7: 1,000.00 | BT7: 0.20 | BU7: 13.00 | BV7: 10.56 | BW7: =BW4 -> 4.00 | BX7: 0.50 | BY7: 1.00 | BZ7: 0 | CA7: 13.00 | CB7: 1.23 | CC7: 0.62 | CD7: 40.00 | CE7: 5.06 | CF7: 8.00 | CG7: 25.30 | CJ7: 0.20 | CK7: 305.11 | CL7: 55.00 | CM7: 305.11 | CN7: 5.55 | CO7: 8.79 | CP7: 250.00 | CQ7: 662.50 | CR7: 50.00 | CS7: 3,312.50 | CT7: 50.00 | CU7: 3.65 | CV7: 13.25 | CW7: 18.25
A8: 0.125 | B8: 0.13 | C8: 408.17 | D8: 66.00 | G8: 6.18 | H8: 9.93 | I8: 480.54 | J8: 60.07 | K8: 6,028.82 | L8: 753.60 | M8: (0.00) | N8: (0.00) | O8: (0.00) | P8: (0.00) | Q8: 0.25 | R8: 2.00 | S8: 0 | T8: 233.3333333 | U8: 2.291666667 | V8: 375.9259259 | W8: 225,013 | X8: 0 | Y8: 0 | Z8: 0 | AA8: 694 | AC8: a | AD8: Variable | AF8: 0.25 | AG8: 62.93 | AH8: 16.50 | AI8: =AI7 -> 2.00 | AJ8: 0.50 | AK8: 60.00 | AL8: 0.50 | AM8: 62.93 | AN8: 3.81 | AO8: 1.91 | AP8: 50.00 | AQ8: 27.39 | AR8: 12.50 | AS8: 109.54 | AT8: 2.19 | AU8: 1.10 | AW8: 0.25 | AX8: 547.72 | AY8: 15.00 | AZ8: =AZ7 -> 20.00 | BA8: 0.50 | BB8: 50.00 | BC8: 0.50 | BD8: 50.00 | BE8: 250.00 | BF8: 12.50 | BG8: 1,000.00 | BI8: 0.25 | BJ8: 547.72 | BK8: 15.00 | BL8: =BL7 -> 20.00 | BM8: 0.50 | BN8: 50.00 | BO8: 0.50 | BP8: 12.50 | BQ8: 1,000.00 | BT8: 0.25 | BU8: 14.53 | BV8: 13.20 | BW8: =BW7 -> 4.00 | BX8: 0.50 | BY8: 1.00 | BZ8: 0 | CA8: 14.53 | CB8: 1.10 | CC8: 0.55 | CD8: 40.00 | CE8: 6.32 | CF8: 10.00 | CG8: 25.30 | CJ8: 0.25 | CK8: 435.86 | CL8: 68.75 | CM8: 435.86 | CN8: 6.34 | CO8: 10.21 | CP8: 250.00 | CQ8: 828.13 | CR8: 62.50 | CS8: 3,312.50 | CT8: 62.50 | CU8: 4.56 | CV8: 13.25 | CW8: 18.25
A9: 0.15 | B9: 0.15 | C9: 547.81 | D9: 79.20 | G9: 6.92 | H9: 11.21 | I9: 480.54 | J9: 72.08 | K9: 6,028.82 | L9: 904.32 | M9: (0.00) | N9: (0.00) | O9: (0.00) | P9: (0.00) | Q9: 0.30 | R9: 2.00 | S9: 0 | T9: 233.3333333 | U9: 2.75 | V9: 451.1111111 | W9: 224,319 | X9: 0 | Y9: 0 | Z9: 0 | AA9: 660 | AC9: x2 | AD9: ='Etapas Produccion FPcp'!D10 -> 2 | AF9: 0.30 | AG9: 68.93 | AH9: 19.80 | AI9: 2.00 | AJ9: 0.50 | AK9: 60.00 | AL9: 0.50 | AM9: 68.93 | AN9: 3.48 | AO9: 1.74 | AP9: 50.00 | AQ9: 32.86 | AR9: 15.00 | AS9: 109.54 | AT9: 2.19 | AU9: 1.10 | AW9: 0.30 | AX9: 600.00 | AY9: 18.00 | AZ9: 20.00 | BA9: 0.50 | BB9: 50.00 | BC9: 0.50 | BD9: 50.00 | BE9: 300.00 | BF9: 15.00 | BG9: 1,000.00 | BI9: 0.30 | BJ9: 600.00 | BK9: 18.00 | BL9: 20.00 | BM9: 0.50 | BN9: 50.00 | BO9: 0.50 | BP9: 15.00 | BQ9: 1,000.00 | BT9: 0.30 | BU9: 15.92 | BV9: 15.84 | BW9: 4.00 | BX9: 0.50 | BY9: 1.00 | BZ9: 0 | CA9: 15.92 | CB9: 1.01 | CC9: 0.50 | CD9: 40.00 | CE9: 7.59 | CF9: 12.00 | CG9: 25.30 | CJ9: 0.30 | CK9: 585.29 | CL9: 82.50 | CM9: 585.29 | CN9: 7.09 | CO9: 11.51 | CP9: 250.00 | CQ9: 993.75 | CR9: 75.00 | CS9: 3,312.50 | CT9: 75.00 | CU9: 5.48 | CV9: 13.25 | CW9: 18.25
A10: 0.175 | B10: 0.18 | C10: 703.55 | D10: 92.40 | G10: 7.61 | H10: 12.37 | I10: 480.54 | J10: 84.09 | K10: 6,028.82 | L10: 1,055.04 | M10: (0.00) | N10: (0.00) | O10: (0.00) | P10: (0.00) | Q10: 0.35 | R10: 2.00 | S10: 0 | T10: 233.3333333 | U10: 3.208333333 | V10: 526.2962963 | W10: 223,659 | X10: 0 | Y10: 0 | Z10: 0 | AA10: 626 | AC10: 1-a | AD10: ='Etapas Produccion FPcp'!D11 -> 0 | AF10: 0.35 | AG10: 74.46 | AH10: 23.10 | AI10: 2.00 | AJ10: 0.50 | AK10: 60.00 | AL10: 0.50 | AM10: 74.46 | AN10: 3.22 | AO10: 1.61 | AP10: 50.00 | AQ10: 38.34 | AR10: 17.50 | AS10: 109.54 | AT10: 2.19 | AU10: 1.10 | AW10: 0.35 | AX10: 648.07 | AY10: 21.00 | AZ10: 20.00 | BA10: 0.50 | BB10: 50.00 | BC10: 0.50 | BD10: 50.00 | BE10: 350.00 | BF10: 17.50 | BG10: 1,000.00 | BI10: 0.35 | BJ10: 648.07 | BK10: 21.00 | BL10: 20.00 | BM10: 0.50 | BN10: 50.00 | BO10: 0.50 | BP10: 17.50 | BQ10: 1,000.00 | BT10: 0.35 | BU10: 17.20 | BV10: 18.48 | BW10: 4.00 | BX10: 0.50 | BY10: 1.00 | BZ10: 0 | CA10: 17.20 | CB10: 0.93 | CC10: 0.47 | CD10: 40.00 | CE10: 8.85 | CF10: 14.00 | CG10: 25.30 | CJ10: 0.35 | CK10: 751.82 | CL10: 96.25 | CM10: 751.82 | CN10: 7.81 | CO10: 12.70 | CP10: 250.00 | CQ10: 1,159.38 | CR10: 87.50 | CS10: 3,312.50 | CT10: 87.50 | CU10: 6.39 | CV10: 13.25 | CW10: 18.25
A11: 0.2 | B11: 0.20 | C11: 874.04 | D11: 105.60 | G11: 8.28 | H11: 13.44 | I11: 480.54 | J11: 96.11 | K11: 6,028.82 | L11: 1,205.76 | M11: (0.00) | N11: (0.00) | O11: (0.00) | P11: (0.00) | Q11: 0.40 | R11: 2.00 | S11: 0 | T11: 233.3333333 | U11: 3.666666667 | V11: 601.4814815 | W11: 223,032 | X11: 0 | Y11: 0 | Z11: 0 | AA11: 593 | AC11: x1 maximo | AD11: ='Etapas Produccion FPcp'!D12 -> Inserte los datos correspondientes | AF11: 0.40 | AG11: 79.60 | AH11: 26.40 | AI11: 2.00 | AJ11: 0.50 | AK11: 60.00 | AL11: 0.50 | AM11: 79.60 | AN11: 3.02 | AO11: 1.51 | AP11: 50.00 | AQ11: 43.82 | AR11: 20.00 | AS11: 109.54 | AT11: 2.19 | AU11: 1.10 | AW11: 0.40 | AX11: 692.82 | AY11: 24.00 | AZ11: 20.00 | BA11: 0.50 | BB11: 50.00 | BC11: 0.50 | BD11: 50.00 | BE11: 400.00 | BF11: 20.00 | BG11: 1,000.00 | BI11: 0.40 | BJ11: 692.82 | BK11: 24.00 | BL11: 20.00 | BM11: 0.50 | BN11: 50.00 | BO11: 0.50 | BP11: 20.00 | BQ11: 1,000.00 | BT11: 0.40 | BU11: 18.38 | BV11: 21.12 | BW11: 4.00 | BX11: 0.50 | BY11: 1.00 | BZ11: 0 | CA11: 18.38 | CB11: 0.87 | CC11: 0.44 | CD11: 40.00 | CE11: 10.12 | CF11: 16.00 | CG11: 25.30 | CJ11: 0.40 | CK11: 933.90 | CL11: 110.00 | CM11: 933.90 | CN11: 8.49 | CO11: 13.77 | CP11: 250.00 | CQ11: 1,325.00 | CR11: 100.00 | CS11: 3,312.50 | CT11: 100.00 | CU11: 7.30 | CV11: 13.25 | CW11: 18.25
A12: 0.225 | B12: 0.23 | C12: 1,057.87 | D12: 118.80 | G12: 8.90 | H12: 14.40 | I12: 480.54 | J12: 108.12 | K12: 6,028.82 | L12: 1,356.48 | M12: (0.00) | N12: (0.00) | O12: (0.00) | P12: (0.00) | Q12: 0.45 | R12: 2.00 | S12: 0 | T12: 233.3333333 | U12: 4.125 | V12: 676.6666667 | W12: 222,440 | X12: 0 | Y12: 0 | Z12: 0 | AA12: 559 | AF12: 0.45 | AG12: 84.43 | AH12: 29.70 | AI12: 2.00 | AJ12: 0.50 | AK12: 60.00 | AL12: 0.50 | AM12: 84.43 | AN12: 2.84 | AO12: 1.42 | AP12: 50.00 | AQ12: 49.30 | AR12: 22.50 | AS12: 109.54 | AT12: 2.19 | AU12: 1.10 | AW12: 0.45 | AX12: 734.85 | AY12: 27.00 | AZ12: 20.00 | BA12: 0.50 | BB12: 50.00 | BC12: 0.50 | BD12: 50.00 | BE12: 450.00 | BF12: 22.50 | BG12: 1,000.00 | BI12: 0.45 | BJ12: 734.85 | BK12: 27.00 | BL12: 20.00 | BM12: 0.50 | BN12: 50.00 | BO12: 0.50 | BP12: 22.50 | BQ12: 1,000.00 | BT12: 0.45 | BU12: 19.50 | BV12: 23.76 | BW12: 4.00 | BX12: 0.50 | BY12: 1.00 | BZ12: 0 | CA12: 19.50 | CB12: 0.82 | CC12: 0.41 | CD12: 40.00 | CE12: 11.38 | CF12: 18.00 | CG12: 25.30 | CJ12: 0.45 | CK12: 1,129.97 | CL12: 123.75 | CM12: 1,129.97 | CN12: 9.13 | CO12: 14.73 | CP12: 250.00 | CQ12: 1,490.63 | CR12: 112.50 | CS12: 3,312.50 | CT12: 112.50 | CU12: 8.21 | CV12: 13.25 | CW12: 18.25
A13: 0.25 | B13: 0.25 | C13: 1,253.68 | D13: 132.00 | G13: 9.50 | H13: 15.25 | I13: 480.54 | J13: 120.13 | K13: 6,028.82 | L13: 1,507.21 | M13: (0.00) | N13: (0.00) | O13: (0.00) | P13: (0.00) | Q13: 0.50 | R13: 2.00 | S13: 0 | T13: 233.3333333 | U13: 4.583333333 | V13: 751.8518519 | W13: 221,881 | X13: 0 | Y13: 0 | Z13: 0 | AA13: 525 | AC13: x1 | AD13: =AD7 -> -0.0001 | AF13: 0.50 | AG13: 88.99 | AH13: 33.00 | AI13: 2.00 | AJ13: 0.50 | AK13: 60.00 | AL13: 0.50 | AM13: 88.99 | AN13: 2.70 | AO13: 1.35 | AP13: 50.00 | AQ13: 54.77 | AR13: 25.00 | AS13: 109.54 | AT13: 2.19 | AU13: 1.10 | AW13: 0.50 | AX13: 774.60 | AY13: 30.00 | AZ13: 20.00 | BA13: 0.50 | BB13: 50.00 | BC13: 0.50 | BD13: 50.00 | BE13: 500.00 | BF13: 25.00 | BG13: 1,000.00 | BI13: 0.50 | BJ13: 774.60 | BK13: 30.00 | BL13: 20.00 | BM13: 0.50 | BN13: 50.00 | BO13: 0.50 | BP13: 25.00 | BQ13: 1,000.00 | BT13: 0.50 | BU13: 20.55 | BV13: 26.40 | BW13: 4.00 | BX13: 0.50 | BY13: 1.00 | BZ13: 0 | CA13: 20.55 | CB13: 0.78 | CC13: 0.39 | CD13: 40.00 | CE13: 12.65 | CF13: 20.00 | CG13: 25.30 | CJ13: 0.50 | CK13: 1,338.48 | CL13: 137.50 | CM13: 1,338.48 | CN13: 9.73 | CO13: 15.58 | CP13: 250.00 | CQ13: 1,656.25 | CR13: 125.00 | CS13: 3,312.50 | CT13: 125.00 | CU13: 9.13 | CV13: 13.25 | CW13: 18.25
A14: 0.275 | B14: 0.28 | C14: 1,460.09 | D14: 145.20 | G14: 10.06 | H14: 16.00 | I14: 480.54 | J14: 132.15 | K14: 6,028.82 | L14: 1,657.93 | M14: (0.00) | N14: (0.00) | O14: (0.00) | P14: (0.00) | Q14: 0.55 | R14: 2.00 | S14: 0 | T14: 233.3333333 | U14: 5.041666667 | V14: 827.037037 | W14: 221,355 | X14: 0 | Y14: =(IF(X14=1,D14,0)) -> 0 | Z14: 0 | AA14: 492 | AC14: Producto Total | AD14: =AD6*AD13^(AD17)*AD9^(AD10) ->  | AF14: 0.55 | AG14: 93.34 | AH14: 36.30 | AI14: 2.00 | AJ14: 0.50 | AK14: 60.00 | AL14: 0.50 | AM14: 93.34 | AN14: 2.57 | AO14: 1.29 | AP14: 50.00 | AQ14: 60.25 | AR14: 27.50 | AS14: 109.54 | AT14: 2.19 | AU14: 1.10 | AW14: 0.55 | AX14: 812.40 | AY14: 33.00 | AZ14: 20.00 | BA14: 0.50 | BB14: 50.00 | BC14: 0.50 | BD14: 50.00 | BE14: 550.00 | BF14: 27.50 | BG14: 1,000.00 | BI14: 0.55 | BJ14: 812.40 | BK14: 33.00 | BL14: 20.00 | BM14: 0.50 | BN14: 50.00 | BO14: 0.50 | BP14: 27.50 | BQ14: 1,000.00 | BT14: 0.55 | BU14: 21.56 | BV14: 29.04 | BW14: 4.00 | BX14: 0.50 | BY14: 1.00 | BZ14: 0 | CA14: 21.56 | CB14: 0.74 | CC14: 0.37 | CD14: 40.00 | CE14: 13.91 | CF14: 22.00 | CG14: 25.30 | CJ14: 0.55 | CK14: 1,557.85 | CL14: 151.25 | CM14: 1,557.85 | CN14: 10.30 | CO14: 16.31 | CP14: 250.00 | CQ14: 1,821.88 | CR14: 137.50 | CS14: 3,312.50 | CT14: 137.50 | CU14: 10.04 | CV14: 13.25 | CW14: 18.25
A15: 0.3 | B15: 0.30 | C15: 1,675.70 | D15: 158.40 | G15: 10.58 | H15: 16.65 | I15: 480.54 | J15: 144.16 | K15: 6,028.82 | L15: 1,808.65 | M15: (0.00) | N15: (0.00) | O15: (0.00) | P15: (0.00) | Q15: 0.60 | R15: 2.00 | S15: 0 | T15: 233.3333333 | U15: 5.5 | V15: 902.2222222 | W15: 220,863 | X15: 0 | Y15: 0 | Z15: 0 | AA15: 459 | AC15: Producto Medio | AD15: =AD14/AD13 ->  | AF15: 0.60 | AG15: 97.49 | AH15: 39.60 | AI15: 2.00 | AJ15: 0.50 | AK15: 60.00 | AL15: 0.50 | AM15: 97.49 | AN15: 2.46 | AO15: 1.23 | AP15: 50.00 | AQ15: 65.73 | AR15: 30.00 | AS15: 109.54 | AT15: 2.19 | AU15: 1.10 | AW15: 0.60 | AX15: 848.53 | AY15: 36.00 | AZ15: 20.00 | BA15: 0.50 | BB15: 50.00 | BC15: 0.50 | BD15: 50.00 | BE15: 600.00 | BF15: 30.00 | BG15: 1,000.00 | BI15: 0.60 | BJ15: 848.53 | BK15: 36.00 | BL15: 20.00 | BM15: 0.50 | BN15: 50.00 | BO15: 0.50 | BP15: 30.00 | BQ15: 1,000.00 | BT15: 0.60 | BU15: 22.51 | BV15: 31.68 | BW15: 4.00 | BX15: 0.50 | BY15: 1.00 | BZ15: 0 | CA15: 22.51 | CB15: 0.71 | CC15: 0.36 | CD15: 40.00 | CE15: 15.18 | CF15: 24.00 | CG15: 25.30 | CJ15: 0.60 | CK15: 1,786.54 | CL15: 165.00 | CM15: 1,786.54 | CN15: 10.83 | CO15: 16.93 | CP15: 250.00 | CQ15: 1,987.50 | CR15: 150.00 | CS15: 3,312.50 | CT15: 150.00 | CU15: 10.95 | CV15: 13.25 | CW15: 18.25
A16: 0.325 | B16: 0.33 | C16: 1,899.16 | D16: 171.60 | G16: 11.07 | H16: 17.19 | I16: 480.54 | J16: 156.18 | K16: 6,028.82 | L16: 1,959.37 | M16: (0.00) | N16: (0.00) | O16: (0.00) | P16: (0.00) | Q16: 0.65 | R16: 2.00 | S16: 0 | T16: 233.3333333 | U16: 5.958333333 | V16: 977.4074074 | W16: 220,405 | X16: 0 | Y16: 0 | Z16: 0 | AA16: 426 | AC16: Producto Marginal | AD16: =AD18 ->  | AF16: 0.65 | AG16: 101.47 | AH16: 42.90 | AI16: 2.00 | AJ16: 0.50 | AK16: 60.00 | AL16: 0.50 | AM16: 101.47 | AN16: 2.37 | AO16: 1.18 | AP16: 50.00 | AQ16: 71.20 | AR16: 32.50 | AS16: 109.54 | AT16: 2.19 | AU16: 1.10 | AW16: 0.65 | AX16: 883.18 | AY16: 39.00 | AZ16: 20.00 | BA16: 0.50 | BB16: 50.00 | BC16: 0.50 | BD16: 50.00 | BE16: 650.00 | BF16: 32.50 | BG16: 1,000.00 | BI16: 0.65 | BJ16: 883.18 | BK16: 39.00 | BL16: 20.00 | BM16: 0.50 | BN16: 50.00 | BO16: 0.50 | BP16: 32.50 | BQ16: 1,000.00 | BT16: 0.65 | BU16: 23.43 | BV16: 34.32 | BW16: 4.00 | BX16: 0.50 | BY16: 1.00 | BZ16: 0 | CA16: 23.43 | CB16: 0.68 | CC16: 0.34 | CD16: 40.00 | CE16: 16.44 | CF16: 26.00 | CG16: 25.30 | CJ16: 0.65 | CK16: 2,022.98 | CL16: 178.75 | CM16: 2,022.98 | CN16: 11.32 | CO16: 17.44 | CP16: 250.00 | CQ16: 2,153.13 | CR16: 162.50 | CS16: 3,312.50 | CT16: 162.50 | CU16: 11.86 | CV16: 13.25 | CW16: 18.25
A17: 0.35 | B17: 0.35 | C17: 2,129.06 | D17: 184.80 | G17: 11.52 | H17: 17.63 | I17: 480.54 | J17: 168.19 | K17: 6,028.82 | L17: 2,110.09 | M17: (0.00) | N17: (0.00) | O17: (0.00) | P17: (0.00) | Q17: 0.70 | R17: 2.00 | S17: 0 | T17: 233.3333333 | U17: 6.416666667 | V17: 1052.592593 | W17: 219,979 | X17: 0 | Y17: 0 | Z17: 0 | AA17: 393 | AD17: =VLOOKUP(AD13,D3:E43,2,TRUE) ->  | AF17: 0.70 | AG17: 105.30 | AH17: 46.20 | AI17: 2.00 | AJ17: 0.50 | AK17: 60.00 | AL17: 0.50 | AM17: 105.30 | AN17: 2.28 | AO17: 1.14 | AP17: 50.00 | AQ17: 76.68 | AR17: 35.00 | AS17: 109.54 | AT17: 2.19 | AU17: 1.10 | AW17: 0.70 | AX17: 916.52 | AY17: 42.00 | AZ17: 20.00 | BA17: 0.50 | BB17: 50.00 | BC17: 0.50 | BD17: 50.00 | BE17: 700.00 | BF17: 35.00 | BG17: 1,000.00 | BI17: 0.70 | BJ17: 916.52 | BK17: 42.00 | BL17: 20.00 | BM17: 0.50 | BN17: 50.00 | BO17: 0.50 | BP17: 35.00 | BQ17: 1,000.00 | BT17: 0.70 | BU17: 24.32 | BV17: 36.96 | BW17: 4.00 | BX17: 0.50 | BY17: 1.00 | BZ17: 0 | CA17: 24.32 | CB17: 0.66 | CC17: 0.33 | CD17: 40.00 | CE17: 17.71 | CF17: 28.00 | CG17: 25.30 | CJ17: 0.70 | CK17: 2,265.60 | CL17: 192.50 | CM17: 2,265.60 | CN17: 11.77 | CO17: 17.83 | CP17: 250.00 | CQ17: 2,318.75 | CR17: 175.00 | CS17: 3,312.50 | CT17: 175.00 | CU17: 12.78 | CV17: 13.25 | CW17: 18.25
A18: 0.375 | B18: 0.38 | C18: 2,364.04 | D18: 198.00 | G18: 11.94 | H18: 17.96 | I18: 480.54 | J18: 180.20 | K18: 6,028.82 | L18: 2,260.81 | M18: (0.00) | N18: (0.00) | O18: (0.00) | P18: (0.00) | Q18: 0.75 | R18: 2.00 | S18: 0 | T18: 233.3333333 | U18: 6.875 | V18: 1127.777778 | W18: 219,586 | X18: 0 | Y18: 0 | Z18: 0 | AA18: 360 | AD18: =VLOOKUP(AD13,D3:H43,5,TRUE) ->  | AF18: 0.75 | AG18: 109.00 | AH18: 49.50 | AI18: 2.00 | AJ18: 0.50 | AK18: 60.00 | AL18: 0.50 | AM18: 109.00 | AN18: 2.20 | AO18: 1.10 | AP18: 50.00 | AQ18: 82.16 | AR18: 37.50 | AS18: 109.54 | AT18: 2.19 | AU18: 1.10 | AW18: 0.75 | AX18: 948.68 | AY18: 45.00 | AZ18: 20.00 | BA18: 0.50 | BB18: 50.00 | BC18: 0.50 | BD18: 50.00 | BE18: 750.00 | BF18: 37.50 | BG18: 1,000.00 | BI18: 0.75 | BJ18: 948.68 | BK18: 45.00 | BL18: 20.00 | BM18: 0.50 | BN18: 50.00 | BO18: 0.50 | BP18: 37.50 | BQ18: 1,000.00 | BT18: 0.75 | BU18: 25.17 | BV18: 39.60 | BW18: 4.00 | BX18: 0.50 | BY18: 1.00 | BZ18: 0 | CA18: 25.17 | CB18: 0.64 | CC18: 0.32 | CD18: 40.00 | CE18: 18.97 | CF18: 30.00 | CG18: 25.30 | CJ18: 0.75 | CK18: 2,512.87 | CL18: 206.25 | CM18: 2,512.87 | CN18: 12.18 | CO18: 18.11 | CP18: 250.00 | CQ18: 2,484.38 | CR18: 187.50 | CS18: 3,312.50 | CT18: 187.50 | CU18: 13.69 | CV18: 13.25 | CW18: 18.25
A19: 0.4 | B19: 0.40 | C19: 2,602.71 | D19: 211.20 | G19: 12.32 | H19: 18.19 | I19: 480.54 | J19: 192.22 | K19: 6,028.82 | L19: 2,411.53 | M19: (0.00) | N19: (0.00) | O19: (0.00) | P19: (0.00) | Q19: 0.80 | R19: 2.00 | S19: 0 | T19: 233.3333333 | U19: 7.333333333 | V19: 1202.962963 | W19: 219,227 | X19: 0 | Y19: 0 | Z19: 0 | AA19: 327 | AD19: =AD17*AD6*(AD13^(AD17))*(AD9^(AD10)) ->  | AF19: 0.80 | AG19: 112.57 | AH19: 52.80 | AI19: 2.00 | AJ19: 0.50 | AK19: 60.00 | AL19: 0.50 | AM19: 112.57 | AN19: 2.13 | AO19: 1.07 | AP19: 50.00 | AQ19: 87.64 | AR19: 40.00 | AS19: 109.54 | AT19: 2.19 | AU19: 1.10 | AW19: 0.80 | AX19: 979.80 | AY19: 48.00 | AZ19: 20.00 | BA19: 0.50 | BB19: 50.00 | BC19: 0.50 | BD19: 50.00 | BE19: 800.00 | BF19: 40.00 | BG19: 1,000.00 | BI19: 0.80 | BJ19: 979.80 | BK19: 48.00 | BL19: 20.00 | BM19: 0.50 | BN19: 50.00 | BO19: 0.50 | BP19: 40.00 | BQ19: 1,000.00 | BT19: 0.80 | BU19: 26.00 | BV19: 42.24 | BW19: 4.00 | BX19: 0.50 | BY19: 1.00 | BZ19: 0 | CA19: 26.00 | CB19: 0.62 | CC19: 0.31 | CD19: 40.00 | CE19: 20.24 | CF19: 32.00 | CG19: 25.30 | CJ19: 0.80 | CK19: 2,763.20 | CL19: 220.00 | CM19: 2,763.20 | CN19: 12.56 | CO19: 18.28 | CP19: 250.00 | CQ19: 2,650.00 | CR19: 200.00 | CS19: 3,312.50 | CT19: 200.00 | CU19: 14.60 | CV19: 13.25 | CW19: 18.25
A20: 0.425 | B20: 0.43 | C20: 2,843.70 | D20: 224.40 | G20: 12.67 | H20: 18.31 | I20: 480.54 | J20: 204.23 | K20: 6,028.82 | L20: 2,562.25 | M20: (0.00) | N20: (0.00) | O20: (0.00) | P20: (0.00) | Q20: 0.85 | R20: 2.00 | S20: 0 | T20: 233.3333333 | U20: 7.791666667 | V20: 1278.148148 | W20: 218,900 | X20: 0 | Y20: 0 | Z20: 0 | AA20: 294 | AF20: 0.85 | AG20: 116.03 | AH20: 56.10 | AI20: 2.00 | AJ20: 0.50 | AK20: 60.00 | AL20: 0.50 | AM20: 116.03 | AN20: 2.07 | AO20: 1.03 | AP20: 50.00 | AQ20: 93.11 | AR20: 42.50 | AS20: 109.54 | AT20: 2.19 | AU20: 1.10 | AW20: 0.85 | AX20: 1,009.95 | AY20: 51.00 | AZ20: 20.00 | BA20: 0.50 | BB20: 50.00 | BC20: 0.50 | BD20: 50.00 | BE20: 850.00 | BF20: 42.50 | BG20: 1,000.00 | BI20: 0.85 | BJ20: 1,009.95 | BK20: 51.00 | BL20: 20.00 | BM20: 0.50 | BN20: 50.00 | BO20: 0.50 | BP20: 42.50 | BQ20: 1,000.00 | BT20: 0.85 | BU20: 26.80 | BV20: 44.88 | BW20: 4.00 | BX20: 0.50 | BY20: 1.00 | BZ20: 0 | CA20: 26.80 | CB20: 0.60 | CC20: 0.30 | CD20: 40.00 | CE20: 21.50 | CF20: 34.00 | CG20: 25.30 | CJ20: 0.85 | CK20: 3,015.05 | CL20: 233.75 | CM20: 3,015.05 | CN20: 12.90 | CO20: 18.33 | CP20: 250.00 | CQ20: 2,815.63 | CR20: 212.50 | CS20: 3,312.50 | CT20: 212.50 | CU20: 15.51 | CV20: 13.25 | CW20: 18.25
A21: 0.45 | B21: 0.45 | C21: 3,085.62 | D21: 237.60 | G21: 12.99 | H21: 18.33 | I21: 480.54 | J21: 216.24 | K21: 6,028.82 | L21: 2,712.97 | M21: (0.00) | N21: (0.00) | O21: (0.00) | P21: (0.00) | Q21: 0.90 | R21: 2.00 | S21: 0 | T21: 233.3333333 | U21: 8.25 | V21: 1353.333333 | W21: 218,606 | X21: 0 | Y21: 0 | Z21: 0 | AA21: 261 | AF21: 0.90 | AG21: 119.40 | AH21: 59.40 | AI21: 2.00 | AJ21: 0.50 | AK21: 60.00 | AL21: 0.50 | AM21: 119.40 | AN21: 2.01 | AO21: 1.01 | AP21: 50.00 | AQ21: 98.59 | AR21: 45.00 | AS21: 109.54 | AT21: 2.19 | AU21: 1.10 | AW21: 0.90 | AX21: 1,039.23 | AY21: 54.00 | AZ21: 20.00 | BA21: 0.50 | BB21: 50.00 | BC21: 0.50 | BD21: 50.00 | BE21: 900.00 | BF21: 45.00 | BG21: 1,000.00 | BI21: 0.90 | BJ21: 1,039.23 | BK21: 54.00 | BL21: 20.00 | BM21: 0.50 | BN21: 50.00 | BO21: 0.50 | BP21: 45.00 | BQ21: 1,000.00 | BT21: 0.90 | BU21: 27.57 | BV21: 47.52 | BW21: 4.00 | BX21: 0.50 | BY21: 1.00 | BZ21: 0 | CA21: 27.57 | CB21: 0.58 | CC21: 0.29 | CD21: 40.00 | CE21: 22.77 | CF21: 36.00 | CG21: 25.30 | CJ21: 0.90 | CK21: 3,266.85 | CL21: 247.50 | CM21: 3,266.85 | CN21: 13.20 | CO21: 18.27 | CP21: 250.00 | CQ21: 2,981.25 | CR21: 225.00 | CS21: 3,312.50 | CT21: 225.00 | CU21: 16.43 | CV21: 13.25 | CW21: 18.25
A22: 0.475 | B22: 0.48 | C22: 3,327.10 | D22: 250.80 | G22: 13.27 | H22: 18.24 | I22: 480.54 | J22: 228.26 | K22: 6,028.82 | L22: 2,863.69 | M22: (0.00) | N22: (0.00) | O22: (0.00) | P22: (0.00) | Q22: 0.95 | R22: 2.00 | S22: 0 | T22: 233.3333333 | U22: 8.708333333 | V22: 1428.518519 | W22: 218,345 | X22: 0 | Y22: 0 | Z22: 0 | AA22: 228 | AF22: 0.95 | AG22: 122.67 | AH22: 62.70 | AI22: 2.00 | AJ22: 0.50 | AK22: 60.00 | AL22: 0.50 | AM22: 122.67 | AN22: 1.96 | AO22: 0.98 | AP22: 50.00 | AQ22: 104.07 | AR22: 47.50 | AS22: 109.54 | AT22: 2.19 | AU22: 1.10 | AW22: 0.95 | AX22: 1,067.71 | AY22: 57.00 | AZ22: 20.00 | BA22: 0.50 | BB22: 50.00 | BC22: 0.50 | BD22: 50.00 | BE22: 950.00 | BF22: 47.50 | BG22: 1,000.00 | BI22: 0.95 | BJ22: 1,067.71 | BK22: 57.00 | BL22: 20.00 | BM22: 0.50 | BN22: 50.00 | BO22: 0.50 | BP22: 47.50 | BQ22: 1,000.00 | BT22: 0.95 | BU22: 28.33 | BV22: 50.16 | BW22: 4.00 | BX22: 0.50 | BY22: 1.00 | BZ22: 0 | CA22: 28.33 | CB22: 0.56 | CC22: 0.28 | CD22: 40.00 | CE22: 24.03 | CF22: 38.00 | CG22: 25.30 | CJ22: 0.95 | CK22: 3,517.04 | CL22: 261.25 | CM22: 3,517.04 | CN22: 13.46 | CO22: 18.10 | CP22: 250.00 | CQ22: 3,146.88 | CR22: 237.50 | CS22: 3,312.50 | CT22: 237.50 | CU22: 17.34 | CV22: 13.25 | CW22: 18.25
A23: 0.5 | B23: 0.50 | C23: 3,566.75 | D23: 264.00 | G23: 13.51 | H23: 18.05 | I23: 480.54 | J23: 240.27 | K23: 6,028.82 | L23: 3,014.41 | M23: (0.00) | N23: (0.00) | O23: (0.00) | P23: (0.00) | Q23: 1.00 | R23: 2.00 | S23: 0 | T23: 233.3333333 | U23: 9.166666667 | V23: 1503.703704 | W23: 218,117 | X23: 0 | Y23: 0 | Z23: 0 | AA23: 196 | AF23: 1.00 | AG23: 125.86 | AH23: 66.00 | AI23: 2.00 | AJ23: 0.50 | AK23: 60.00 | AL23: 0.50 | AM23: 125.86 | AN23: 1.91 | AO23: 0.95 | AP23: 50.00 | AQ23: 109.54 | AR23: 50.00 | AS23: 109.54 | AT23: 2.19 | AU23: 1.10 | AW23: 1.00 | AX23: =AZ23*(AY23^(BA23)*BB23^(BC23)) -> 1,095.45 | AY23: 60.00 | AZ23: 20.00 | BA23: 0.50 | BB23: 50.00 | BC23: 0.50 | BD23: 50.00 | BE23: 1,000.00 | BF23: 50.00 | BG23: 1,000.00 | BI23: 1.00 | BJ23: =BL23*(BK23^(BM23)*BN23^(BO23)) -> 1,095.45 | BK23: 60.00 | BL23: 20.00 | BM23: 0.50 | BN23: 50.00 | BO23: 0.50 | BP23: 50.00 | BQ23: 1,000.00 | BT23: 1.00 | BU23: 29.07 | BV23: 52.80 | BW23: 4.00 | BX23: 0.50 | BY23: 1.00 | BZ23: 0 | CA23: 29.07 | CB23: 0.55 | CC23: 0.28 | CD23: 40.00 | CE23: 25.30 | CF23: 40.00 | CG23: 25.30 | CJ23: 1.00 | CK23: 3,764.06 | CL23: 275.00 | CM23: 3,764.06 | CN23: 13.69 | CO23: 17.81 | CP23: 250.00 | CQ23: 3,312.50 | CR23: 250.00 | CS23: 3,312.50 | CT23: 250.00 | CU23: 18.25 | CV23: 13.25 | CW23: 18.25
A24: 0.525 | B24: 0.53 | C24: 3,803.19 | D24: 277.20 | G24: 13.72 | H24: 17.76 | I24: 480.54 | J24: 252.28 | K24: 6,028.82 | L24: 3,165.13 | M24: (0.00) | N24: (0.00) | O24: (0.00) | P24: (0.00) | Q24: 1.05 | R24: 2.00 | S24: 0 | T24: 233.3333333 | U24: 9.625 | V24: 1578.888889 | W24: 217,921 | X24: 0 | Y24: 0 | Z24: 0 | AA24: 163
A25: 0.55 | B25: 0.55 | C25: 4,035.05 | D25: 290.40 | G25: 13.89 | H25: 17.36 | I25: 480.54 | J25: 264.30 | K25: 6,028.82 | L25: 3,315.85 | M25: (0.00) | N25: (0.00) | O25: (0.00) | P25: (0.00) | Q25: 1.10 | R25: 2.00 | S25: 0 | T25: 233.3333333 | U25: 10.08333333 | V25: 1654.074074 | W25: 217,758 | X25: 0 | Y25: 0 | Z25: 0 | AA25: 131
A26: 0.575 | B26: 0.58 | C26: 4,260.94 | D26: 303.60 | G26: 14.03 | H26: 16.85 | I26: 480.54 | J26: 276.31 | K26: 6,028.82 | L26: 3,466.57 | M26: (0.00) | N26: (0.00) | O26: (0.00) | P26: (0.00) | Q26: 1.15 | R26: 2.00 | S26: 0 | T26: 233.3333333 | U26: 10.54166667 | V26: 1729.259259 | W26: 217,627 | X26: 0 | Y26: 0 | Z26: 0 | AA26: 98 | AH26: =AH35*1.1 -> 55 | BD26: =AZ23*(BD23^(BA23)*BB23^(BC23)) -> 1000 | BE26: =BL23*(BD23^(BM23)*BN23^(BO23)) -> 1,000.00 | BV26: =BV35*1.1 -> 44 | CK26: y | CL26: =((CL28)*CL27^3)+((CL29)*(CL27^2))+((CL30)*CL27) -> 3,312.5
A27: 0.6 | B27: 0.60 | C27: 4,479.48 | D27: 316.80 | G27: 14.14 | H27: 16.24 | I27: 480.54 | J27: 288.32 | K27: 6,028.82 | L27: 3,617.29 | M27: (0.00) | N27: (0.00) | O27: (0.00) | P27: (0.00) | Q27: 1.20 | R27: 2.00 | S27: 0 | T27: 233.3333333 | U27: 11 | V27: 1804.444444 | W27: 217,529 | X27: 0 | Y27: 0 | Z27: 0 | AA27: 66 | AG27: y | AH27: =AH28*AH29^(AH30)*AH31^(AH32) -> 109.5445115 | AX27: y | AY27: =AY28*(AY29^(AY30))*(AY31^(AY32)) -> 1000 | BD27: =AZ23*(AY35^(BA23)*BB23^(BC23)) -> 1000 | BE27: =BL23*(AY35^(BM23)*BN23^(BO23)) -> 1000 | BJ27: y | BK27: =BK28*(BK29^(BK30))*(BK31^(BK32)) -> 1000 | BU27: y | BV27: =BV28*BV29^(BV30)*BV31^(BV32) -> 25.29822128 | CK27: q1 | CL27: ='Funcion Polinomio FPcp'!D7 -> 250.0
A28: 0.625 | B28: 0.63 | C28: 4,689.30 | D28: 330.00 | G28: 14.21 | H28: 15.53 | I28: 480.54 | J28: 300.34 | K28: 6,028.82 | L28: 3,768.01 | M28: (0.00) | N28: (0.00) | O28: (0.00) | P28: (0.00) | Q28: 1.25 | R28: 2.00 | S28: 0 | T28: 233.3333333 | U28: 11.45833333 | V28: 1879.62963 | W28: 217,464 | X28: 0 | Y28: =(IF(X28=1,D28,0)) -> 0 | Z28: =IF(Y28>0,C28,0) -> 0 | AA28: 33 | AG28: A | AH28: ='Funcion Rend.Const. FPcp'!D7 -> 2 | AX28: A | AY28: ='Cambio Tecnologico FPcp'!C7 -> 20 | BJ28: A | BK28: ='Cambio Tecnologico FPcp'!E7 -> 20 | BU28: A | BV28: ='Funcion Rend.Var. FPcp'!D7 -> 4 | CK28: a | CL28: ='Funcion Polinomio FPcp'!D8 -> -0.0
A29: 0.65 | B29: 0.65 | C29: 4,889.01 | D29: 343.20 | G29: 14.25 | H29: 14.71 | I29: 480.54 | J29: 312.35 | K29: 6,028.82 | L29: 3,918.73 | M29: (0.00) | N29: (0.00) | O29: (0.00) | P29: (0.00) | Q29: 1.30 | R29: 2.00 | S29: 0 | T29: 233.3333333 | U29: 11.91666667 | V29: 1954.814815 | W29: 217,431 | X29: 0 | Y29: 0 | Z29: 0 | AA29: 0 | AG29: q1 | AH29: ='Funcion Rend.Const. FPcp'!$D$8 -> 50.0 | AX29: x1 | AY29: ='Cambio Tecnologico FPcp'!C8 -> 50 | BJ29: x1 | BK29: ='Cambio Tecnologico FPcp'!E8 -> 50 | BU29: x1 | BV29: ='Funcion Rend.Var. FPcp'!D8 -> 40 | CK29: b | CL29: ='Funcion Polinomio FPcp'!D9 -> 0.1
A30: 0.675 | B30: 0.68 | C30: 5,077.24 | D30: 356.40 | G30: 14.25 | H30: 13.79 | I30: 480.54 | J30: 324.36 | K30: 6,028.82 | L30: 4,069.45 | M30: (0.00) | N30: (0.00) | O30: (0.00) | P30: (0.00) | Q30: 1.35 | R30: 2.00 | S30: 0 | T30: 233.3333333 | U30: 12.375 | V30: 2030 | W30: 217,430 | X30: 1 | Y30: 356.4 | Z30: 5077.240186 | AA30: (32) | AG30: a | AH30: ='Funcion Rend.Const. FPcp'!D9 -> 0.5 | AX30: a | AY30: ='Cambio Tecnologico FPcp'!C9 -> 0.5 | BJ30: a | BK30: ='Cambio Tecnologico FPcp'!E9 -> 0.5 | BU30: a | BV30: ='Funcion Rend.Var. FPcp'!D9 -> 0.5 | CK30: c | CL30: ='Funcion Polinomio FPcp'!D10 -> 2.0
A31: 0.7 | B31: 0.70 | C31: 5,252.60 | D31: 369.60 | G31: 14.21 | H31: 12.76 | I31: 480.54 | J31: 336.38 | K31: 6,028.82 | L31: 4,220.18 | M31: (0.00) | N31: (0.00) | O31: (0.00) | P31: (0.00) | Q31: 1.40 | R31: 2.00 | S31: 0 | T31: 233.3333333 | U31: 12.83333333 | V31: 2105.185185 | W31: 217,462 | X31: 0 | Y31: 0 | Z31: 0 | AA31: (65) | AG31: x2 | AH31: ='Funcion Rend.Const. FPcp'!D10 -> 60 | AX31: x2 | AY31: ='Cambio Tecnologico FPcp'!C10 -> 50 | BJ31: x2 | BK31: ='Cambio Tecnologico FPcp'!E10 -> 50 | BU31: x2 | BV31: ='Funcion Rend.Var. FPcp'!D10 -> 1
A32: 0.725 | B32: 0.73 | C32: 5,413.72 | D32: 382.80 | G32: 14.14 | H32: 11.63 | I32: 480.54 | J32: 348.39 | K32: 6,028.82 | L32: 4,370.90 | M32: (0.00) | N32: (0.00) | O32: (0.00) | P32: (0.00) | Q32: 1.45 | R32: 2.00 | S32: 0 | T32: 233.3333333 | U32: 13.29166667 | V32: 2180.37037 | W32: 217,527 | X32: 0 | Y32: 0 | Z32: 0 | AA32: (97) | AG32: 1-a | AH32: ='Funcion Rend.Const. FPcp'!D11 -> 0.5 | AX32: b | AY32: ='Cambio Tecnologico FPcp'!C11 -> 0.5 | BJ32: b | BK32: =1-BK30 -> 0.5 | BU32: 1-a | BV32: ='Funcion Rend.Var. FPcp'!D11 -> 0
A33: 0.75 | B33: 0.75 | C33: 5,559.21 | D33: 396.00 | G33: 14.04 | H33: 10.40 | I33: 480.54 | J33: 360.40 | K33: 6,028.82 | L33: 4,521.62 | M33: (0.00) | N33: (0.00) | O33: (0.00) | P33: (0.00) | Q33: 1.50 | R33: 2.00 | S33: 0 | T33: 233.3333333 | U33: 13.75 | V33: 2255.555556 | W33: 217,624 | X33: 0 | Y33: 0 | Z33: 0 | AA33: (130) | CJ33: Cantidad de q1 | CL33: =CL27 -> 250.0
A34: 0.775 | B34: 0.78 | C34: 5,687.69 | D34: 409.20 | G34: 13.90 | H34: 9.05 | I34: 480.54 | J34: 372.42 | K34: 6,028.82 | L34: 4,672.34 | M34: (0.00) | N34: (0.00) | O34: (0.00) | P34: (0.00) | Q34: 1.55 | R34: 2.00 | S34: 0 | T34: 233.3333333 | U34: 14.20833333 | V34: 2330.740741 | W34: 217,753 | X34: 0 | Y34: 0 | Z34: 0 | AA34: (162) | CJ34: Producto Total | CL34: =CL26 -> 3,312.5
A35: 0.8 | B35: 0.80 | C35: 5,797.79 | D35: 422.40 | G35: 13.73 | H35: 7.61 | I35: 480.54 | J35: 384.43 | K35: 6,028.82 | L35: 4,823.06 | M35: (0.00) | N35: (0.00) | O35: (0.00) | P35: (0.00) | Q35: 1.60 | R35: 2.00 | S35: 0 | T35: 233.3333333 | U35: 14.66666667 | V35: 2405.925926 | W35: 217,915 | X35: 0 | Y35: 0 | Z35: 0 | AA35: (195) | AG35: Cantidad x1 | AH35: ='Funcion Rend.Const. FPcp'!D8 -> 50.0 | AX35: Cantidad x1 | AY35: =AY29 -> 50.0 | BU35: Cantidad x1 | BV35: =BV29 -> 40.0 | CJ35: Producto Medio | CL35: =CL26/CL27 -> 13.25
A36: 0.825 | B36: 0.83 | C36: 5,888.12 | D36: 435.60 | G36: 13.52 | H36: 6.06 | I36: 480.54 | J36: 396.45 | K36: 6,028.82 | L36: 4,973.78 | M36: (0.00) | N36: (0.00) | O36: (0.00) | P36: (0.00) | Q36: 1.65 | R36: 2.00 | S36: 0 | T36: 233.3333333 | U36: 15.125 | V36: 2481.111111 | W36: 218,110 | X36: 0 | Y36: 0 | Z36: 0 | AA36: (227) | AG36: Producto Total | AH36: =AH28*AH35^(AH30)*AH31^(AH32) -> 109.5 | BU36: Producto Total | BV36: =BV28*BV35^(BV30)*BV31^(BV32) -> 25.3 | CJ36: Producto Marginal | CL36: =(($CL$28*3)*((CL27^2))+($CL$29*2)*((CL27))+($CL$30)) -> 18.25
A37: 0.85 | B37: 0.85 | C37: 5,957.31 | D37: 448.80 | G37: 13.27 | H37: 4.41 | I37: 480.54 | J37: 408.46 | K37: 6,028.82 | L37: 5,124.50 | M37: (0.00) | N37: (0.00) | O37: (0.00) | P37: (0.00) | Q37: 1.70 | R37: 2.00 | S37: 0 | T37: 233.3333333 | U37: 15.58333333 | V37: 2556.296296 | W37: 218,338 | X37: 0 | Y37: 0 | Z37: 0 | AA37: (260) | AG37: Producto Medio | AH37: =AH36/AH35 -> 2.2 | BU37: Producto Medio | BV37: =BV36/BV35 -> 0.6
A38: 0.875 | B38: 0.88 | C38: 6,003.97 | D38: 462.00 | G38: 13.00 | H38: 2.65 | I38: 480.54 | J38: 420.47 | K38: 6,028.82 | L38: 5,275.22 | M38: (0.00) | N38: (0.00) | O38: (0.00) | P38: (0.00) | Q38: 1.75 | R38: 2.00 | S38: 0 | T38: 233.3333333 | U38: 16.04166667 | V38: 2631.481481 | W38: 218,598 | X38: 0 | Y38: 0 | Z38: 0 | AA38: (293) | AG38: Producto Marginal | AH38: =AH30*AH28*((AH31/AH35)^(AH32)) -> 1.1 | BU38: Producto Marginal | BV38: =BV37*BV30 -> 0.3
A39: 0.9 | B39: 0.90 | C39: 6,026.72 | D39: 475.20 | G39: 12.68 | H39: 0.78 | I39: 480.54 | J39: 432.49 | K39: 6,028.82 | L39: 5,425.94 | M39: (0.00) | N39: (0.00) | O39: (0.00) | P39: (0.00) | Q39: 1.80 | R39: 2.00 | S39: 0 | T39: 233.3333333 | U39: 16.5 | V39: 2706.666667 | W39: 218,891 | X39: 0 | Y39: 0 | Z39: 0 | AA39: (326)
A40: 0.925 | B40: 0.93 | C40: 6,024.19 | D40: 488.40 | G40: 12.33 | H40: (1.18) | I40: 480.54 | J40: 444.50 | K40: 6,028.82 | L40: 5,576.66 | M40: (0.00) | N40: (0.00) | O40: (0.00) | P40: (0.00) | Q40: 1.85 | R40: 2.00 | S40: 0 | T40: 233.3333333 | U40: 16.95833333 | V40: 2781.851852 | W40: 219,216 | X40: 0 | Y40: 0 | Z40: 0 | AA40: (359)
A41: 0.95 | B41: 0.95 | C41: 5,994.99 | D41: 501.60 | G41: 11.95 | H41: (3.26) | I41: 480.54 | J41: 456.51 | K41: 6,028.82 | L41: 5,727.38 | M41: (0.00) | N41: (0.00) | O41: (0.00) | P41: (0.00) | Q41: 1.90 | R41: 2.00 | S41: 0 | T41: 233.3333333 | U41: 17.41666667 | V41: 2857.037037 | W41: 219,575 | X41: 0 | Y41: 0 | Z41: 0 | AA41: (392)
A42: 0.975 | B42: 0.98 | C42: 5,937.75 | D42: 514.80 | G42: 11.53 | H42: (5.43) | I42: 480.54 | J42: 468.53 | K42: 6,028.82 | L42: 5,878.10 | M42: (0.00) | N42: (0.00) | O42: (0.00) | P42: (0.00) | Q42: 1.95 | R42: 2.00 | S42: 0 | T42: 233.3333333 | U42: 17.875 | V42: 2932.222222 | W42: 219,966 | X42: 0 | Y42: 0 | Z42: 0 | AA42: (425)
A43: 1 | B43: 1.00 | C43: 5,851.08 | D43: 528.00 | G43: 11.08 | H43: (7.72) | I43: =$H$46 -> 480.54 | J43: =$H$46*B43 -> 480.54 | K43: 6,028.82 | L43: 6,028.82 | M43: (0.00) | N43: (0.00) | O43: (0.00) | P43: (0.00) | Q43: 2.00 | R43: 2.00 | S43: 0 | T43: 233.3333333 | U43: 18.33333333 | V43: 3007.407407 | W43: 220,391 | X43: 0 | Y43: 0 | Z43: 0 | AA43: 220,391
B45: y | C45: =C47*(C46^(3))+C48*(C46^(2))+C49*C46+C50 -> 6,028.8 | G45: ymax | H45: =C47*(H46^(3))+C48*(H46^(2))+C49*H46+C50 -> 6,028.82 | J45: ymax | K45: =C47*(K46^(3))+C48*(K46^(2))+C49*K46+C50 -> 3,007.41
B46: q1 | C46: ='Etapas Produccion FPcp'!D7 -> 480.0 | G46: q1max | H46: =(-(2*C48)-((((2*C48)^(2))+((-4*3*C47*C49)))^(1/2)))/(2*3*C47) -> 480.5399496 | J46: q1max | K46: =-(1/3)*(C48/C47) -> 233.3333333 | L46: 100 | M46: =C48/C47*(-1/3) -> 233.3333333
B47: a(y^3) | C47: ='Etapas Produccion FPcp'!D8 -> -0.000 | G47: pmg | H47: =3*C47*(H46^(2))+2*C48*H46+C49 -> 1.421085472e-14 | J47: pmg | K47: =3*C47*(K46^(2))+2*C48*K46+C49 -> 18.33
B48: b(y^2) | C48: ='Etapas Produccion FPcp'!D9 -> 0.070 | G48: Pme | H48: =H45/H46 -> 12.55 | J48: Pme | K48: =K45/K46 -> 12.89
B49: c(y) | C49: ='Etapas Produccion FPcp'!D10 -> 2.000
B50: d | C50: 0.0 | G50: q1: pm=pme | H50: ='Etapas Produccion FPcp'!K12 -> -0.0007014477057
G51: y | H51: =C47*(H50^(3))+C48*(H50^(2))+C49*H50+C50 -> -0.0 | I51: 8000
B52: y | C52: =C45 -> 6,028.8 | G52: y/q1 | H52: =H51/H50 -> 1.99995
B53: y/q1 | C53: =C45/C46 -> 12.6 | G53: dy/dq1 | H53: =3*C47*(H50^(2))+2*C48*H50+C49 -> 1.99990
B54: dy/dq1 | C54: =3*C47*(C46^(2))+2*C48*C46+C49 -> 0.08000
